fUSD/lending_fUSD_20260316
["ID","MTS","AMOUNT","RATE_DAILY","PERIOD"]
[408471112,1773695432070,-293.69799653,0.0001182,2]
[408471113,1773695432080,-168.84,0.00011934,30]
[408471114,1773695432089,-352.65,0.00011934,2]
[408471115,1773695432099,-167.51,0.00011934,2]
[408471116,1773695432108,-300.0,0.00012028,2]
[408471117,1773695432118,-4667.09,0.00012029,2]
[408471118,1773695432127,-166.66,0.00012148,2]
[408471119,1773695432136,-1885.16,0.0001229,2]
[408471121,1773695432145,-150.0,0.00012343,2]
[408471122,1773695432154,-54529.47,0.00012344,2]
[408471123,1773695432163,-1500.0,0.00012384,2]
[408471124,1773695432172,-922.17,0.00012384,2]
[408471125,1773695432182,-150.99,0.00012384,2]
[408471126,1773695432191,-9999.99,0.00012384,2]
[408471127,1773695432201,-3818.16,0.00012384,2]
[408471128,1773695432210,-646.3,0.00012384,2]
[408471129,1773695432219,-986.28,0.00012384,2]
[408471130,1773695432228,-420.0,0.00012403,2]
[408471131,1773695432238,-166.66,0.00012404,2]
[408471132,1773695432247,-1680.0,0.0001242,2]
[408471133,1773695432256,-2000.0,0.00012481,2]
[408471134,1773695432265,-822.04,0.00012617,2]
[408471135,1773695432278,-166.66,0.0001266,2]
[408471136,1773695432291,-500.0,0.0001274,2]
[408471137,1773695432300,-1874.87265801,0.00012821,2]
[408471138,1773695432309,-166.66,0.00012915,2]
[408471139,1773695432319,-312.47877634,0.00012937,2]
[408471140,1773695432329,-312.47877634,0.00013065,2]
[408471141,1773695432338,-300.0,0.000131,2]
[408471142,1773695432348,-166.66,0.00013171,2]
[408471143,1773695432360,-312.47877634,0.00013193,2]
[408471144,1773695432370,-200.0,0.000132,2]
[408471145,1773695432379,-500.0,0.0001325,2]
[408471146,1773695432389,-500.0,0.0001325,2]
[408471147,1773695432399,-500.0,0.0001325,2]
[408471148,1773695432408,-500.0,0.0001325,2]
[408471149,1773695432418,-500.0,0.0001325,2]
[408471150,1773695432427,-500.0,0.0001325,2]
[408471151,1773695432437,-151.0,0.0001325,2]
[408471152,1773695432447,-500.0,0.0001325,2]
[408471153,1773695432456,-151.0,0.0001325,2]
[408471154,1773695432466,-500.0,0.0001325,2]
[408471155,1773695432475,-151.0,0.0001325,2]
[408471156,1773695432485,-500.0,0.0001325,2]
[408471157,1773695432494,-500.0,0.0001325,2]
[408471158,1773695432504,-151.0,0.0001325,2]
[408471159,1773695432514,-500.0,0.0001325,2]
[408471160,1773695432523,-500.0,0.0001325,2]
[408471161,1773695432532,-151.0,0.0001325,2]
[408471162,1773695432542,-500.0,0.0001325,2]
[408471163,1773695432551,-500.0,0.0001325,2]
[408471164,1773695432560,-151.0,0.0001325,2]
[408471165,1773695432570,-500.0,0.0001325,2]
[408471166,1773695432579,-151.0,0.0001325,2]
[408471167,1773695432589,-500.0,0.0001325,2]
[408471168,1773695432598,-500.0,0.0001325,2]
[408471169,1773695432608,-151.0,0.0001325,2]
[408471170,1773695432618,-200.0,0.0001325,2]
[408471171,1773695432627,-500.0,0.0001325,2]
[408471172,1773695432637,-151.0,0.0001325,2]
[408471173,1773695432647,-500.0,0.0001325,2]
[408471174,1773695432656,-151.0,0.0001325,2]
[408471175,1773695432665,-500.0,0.0001325,2]
[408471176,1773695432674,-22.87759991,0.0001325,2]
[408471177,1773695432687,-128.12240009,0.0001325,2]
[408471178,1773695432696,-232.68616136,0.0001325,2]
[408471179,1773695432711,-267.31383864,0.0001325,2]
[408471180,1773695432721,-151.0,0.0001325,2]
[408471181,1773695432730,-195.2163949,0.0001325,2]
[408471182,1773695432740,-151.0,0.0001325,2]
[408471183,1773695432750,-151.0,0.0001325,2]
[408471184,1773695432759,-500.0,0.0001325,2]
[408471185,1773695432768,-17444.50184579,0.00013257,2]
[408471186,1773695432778,-153.13141231,0.00013258,2]
[408471187,1773695432787,-19199.95933032,0.00013258,2]
[408471188,1773695432796,-151.0,0.00013355,2]
[408471189,1773695432806,-191.38005748,0.00013357,2]
[408471190,1773695432816,-532.76830535,0.00013357,2]
[408471191,1773695432825,-500.0,0.00013357,2]
[408471192,1773695432836,-500.0,0.00013357,2]
[408471193,1773695432845,-500.0,0.00013357,2]
[408471194,1773695432855,-500.0,0.00013357,2]
[408471195,1773695432864,-500.0,0.00013357,2]
[408471196,1773695432874,-412.21373922,0.00013357,2]
[408471197,1773695432884,-15.8192552,0.00013357,2]
[408471198,1773695433116,-484.1807448,0.00013357,2]
[408471199,1773695433126,-500.0,0.00013357,2]
[408471200,1773695433136,-500.0,0.00013357,2]
[408471201,1773695433146,-500.0,0.00013357,2]
[408471202,1773695433155,-500.0,0.00013357,2]
[408471203,1773695433164,-500.0,0.00013357,2]
[408471204,1773695433173,-500.0,0.00013357,2]
[408471205,1773695433182,-500.0,0.00013357,2]
[408471206,1773695433191,-86138.10844866,0.00013358,2]
[408471207,1773695433202,-1862.303204,0.00013358,2]
[408471208,1773695433213,-303.81331637,0.00013358,2]
[408471211,1773695437999,-38470.49227075,0.00013358,2]
[408471212,1773695438057,-370.14962502,0.00013358,2]
[408471239,1773695440450,-360.70171752,0.00013358,2]
[408471240,1773695440594,-2268.06514106,0.00013358,2]
[408471278,1773695443356,-2009.24118533,0.00013358,2]
[408471355,1773695445933,-294.4125,0.00013358,2]
[408471356,1773695445989,-1000.0,0.00013358,2]
[408471357,1773695446316,-9640.47257549,0.00013358,2]
[408471358,1773695446328,-494.41738127,0.00013358,2]
[408471359,1773695446369,-169756.37263453,0.00013358,2]
[408471361,1773695446379,-6148.39,0.00013358,2]
[408471363,1773695446388,-500.0,0.00013373,2]
[408471365,1773695446399,-226.79177837,0.00013373,2]
[408471366,1773695446409,-160.07737179,0.00013373,2]
[408471367,1773695446420,-160.07768781,0.00013373,2]
[408471369,1773695446429,-500.80502339,0.00013373,2]
[408471371,1773695446438,-383.10920901,0.00013373,2]
[408471372,1773695446447,-160.07751868,0.00013373,2]
[408471373,1773695446456,-160.07772132,0.00013373,2]
[408471375,1773695446466,-160.07753511,0.00013373,2]
[408471376,1773695446475,-160.07914784,0.00013373,2]
[408471377,1773695446484,-160.077691,0.00013373,2]
[408471378,1773695446493,-500.0,0.00013373,2]
[408471379,1773695446502,-166.66,0.00013427,2]
[408471380,1773695446511,-255.0,0.00013429,2]
[408471381,1773695446522,-180.21828672,0.00013433,2]
[408471382,1773695446530,-500.0,0.00013616,2]
[408471383,1773695446540,-587.0,0.00013626,2]
[408471384,1773695446551,-2351.0,0.00013661,2]
[408471385,1773695446560,-2185.78,0.00013699,2]
[408471386,1773695446569,-423.12201754,0.00013719,2]
[408471387,1773695446578,-283.60908703,0.00013719,2]
[408471388,1773695446588,-500.0,0.00013719,2]
[408471390,1773695446597,-500.0,0.00013719,2]
[408471392,1773695446606,-500.0,0.00013719,2]
[408471393,1773695446616,-500.0,0.00013719,2]
[408471394,1773695446625,-500.0,0.00013719,2]
[408471395,1773695446635,-500.0,0.00013719,2]
[408471396,1773695446644,-500.0,0.00013719,2]
[408471397,1773695446653,-500.0,0.00013719,2]
[408471398,1773695446663,-500.0,0.00013719,2]
[408471399,1773695446672,-392.19667981,0.00013719,2]
[408471400,1773695446681,-500.0,0.00013719,2]
[408471401,1773695446691,-500.0,0.00013719,2]
[408471402,1773695446700,-261.30929903,0.00013719,2]
[408471403,1773695446710,-500.0,0.00013719,2]
[408471404,1773695446719,-168.08429134,0.00013719,2]
[408471405,1773695446728,-500.0,0.00013719,2]
[408471406,1773695446737,-500.0,0.00013719,2]
[408471407,1773695446746,-500.0,0.00013719,2]
[408471408,1773695446907,-561.98969959,0.00013719,2]
[408471409,1773695446916,-748.626975,0.0001372,2]
[408471410,1773695446925,-34628.3062919,0.0001372,2]
[408471411,1773695446935,-9450.6613814,0.0001372,2]
[408471412,1773695446944,-180.6517674,0.0001372,2]
[408471413,1773695446953,-166.7,0.00013759,2]
[408471414,1773695446962,-200.0,0.00013798,2]
[408471415,1773695446971,-500.0,0.00013798,2]
[408471416,1773695446980,-151.0,0.00013818,2]
[408471417,1773695446990,-434.4914905,0.00013818,2]
[408471418,1773695447000,-500.0,0.00013818,2]
[408471419,1773695447009,-287.60088401,0.00013818,2]
[408471420,1773695447018,-151.0,0.00013823,2]
[408471421,1773695447027,-350.0,0.00013827,2]
[408471422,1773695447036,-3785.9771116,0.0001383,2]
[408471423,1773695447045,-150.0,0.00013832,2]
[408471424,1773695447055,-186.0,0.00013849,2]
[408471425,1773695447064,-500.0,0.00013873,2]
[408471426,1773695447073,-500.0,0.00013873,2]
[408471427,1773695447082,-1000.0,0.00013921,2]
[408471428,1773695447091,-167.49845187,0.00013929,2]
[408471429,1773695447101,-500.0,0.00013929,2]
[408471430,1773695447110,-250.0,0.00013929,2]
[408471431,1773695447119,-12895.88924913,0.00013929,2]
[408471432,1773695447129,-500.0,0.00013929,2]
[408471433,1773695447139,-500.0,0.00013929,2]
[408471434,1773695447148,-500.0,0.00013929,2]
[408471435,1773695447157,-500.0,0.00013929,2]
[408471436,1773695447166,-500.0,0.00013929,2]
[408471437,1773695447176,-750.0,0.00013929,2]
[408471438,1773695447185,-500.0,0.00013929,2]
[408471439,1773695447194,-500.0,0.00013929,2]
[408471440,1773695447204,-500.0,0.00013929,2]
[408471441,1773695447213,-500.0,0.00013929,2]
[408471442,1773695447222,-500.0,0.00013929,2]
[408471443,1773695447231,-542.33811601,0.00013929,2]
[408471444,1773695447241,-600.2919257,0.00013929,2]
[408471445,1773695447250,-500.0,0.00013929,2]
[408471446,1773695447263,-500.0,0.00013929,2]
[408471447,1773695447273,-500.0,0.00013929,2]
[408471448,1773695447283,-500.0,0.00013929,2]
[408471449,1773695447293,-500.0,0.00013929,2]
[408471450,1773695447304,-250.0,0.00013929,2]
[408471451,1773695447313,-500.0,0.00013929,2]
[408471452,1773695447323,-500.0,0.00013929,2]
[408471453,1773695447333,-500.0,0.00013929,2]
[408471454,1773695447343,-250.0,0.00013929,2]
[408471455,1773695447353,-500.0,0.00013929,2]
[408471456,1773695447363,-500.0,0.00013929,2]
[408471457,1773695447372,-250.0,0.00013929,2]
[408471458,1773695447382,-500.0,0.00013929,2]
[408471459,1773695447391,-250.0,0.00013929,2]
[408471460,1773695447401,-250.0,0.00013929,2]
[408471461,1773695447410,-174.61919141,0.00013929,2]
[408471462,1773695447420,-250.0,0.00013929,2]
[408471463,1773695447429,-250.0,0.00013929,2]
[408471464,1773695447439,-250.0,0.00013929,2]
[408471465,1773695447448,-250.0,0.00013929,2]
[408471466,1773695447457,-250.0,0.00013929,2]
[408471467,1773695447467,-250.0,0.00013929,2]
[408471468,1773695447476,-299.41243554,0.00013929,2]
[408471469,1773695447485,-250.0,0.00013929,2]
[408471470,1773695447495,-250.0,0.00013929,2]
[408471471,1773695447504,-151.0,0.00013929,2]
[408471472,1773695447513,-200.0,0.00013929,2]
[408471473,1773695447522,-250.0,0.00013929,2]
[408471474,1773695447531,-250.0,0.00013929,2]
[408471475,1773695447541,-250.0,0.00013929,2]
[408471476,1773695447550,-250.0,0.00013929,2]
[408471477,1773695447559,-250.0,0.00013929,2]
[408471478,1773695447568,-250.0,0.00013929,2]
[408471479,1773695447577,-500.0,0.00013929,2]
[408471480,1773695447587,-250.0,0.00013929,2]
[408471481,1773695447597,-500.0,0.00013929,2]
[408471482,1773695447607,-250.0,0.00013929,2]
[408471483,1773695447616,-500.0,0.00013929,2]
[408471484,1773695447625,-250.0,0.00013929,2]
[408471485,1773695447634,-500.0,0.00013929,2]
[408471486,1773695447644,-250.0,0.00013929,2]
[408471487,1773695447653,-500.0,0.00013929,2]
[408471488,1773695447663,-250.0,0.00013929,2]
[408471489,1773695447672,-500.0,0.00013929,2]
[408471490,1773695447682,-500.0,0.00013929,2]
[408471491,1773695447692,-500.0,0.00013929,2]
[408471492,1773695447702,-500.0,0.00013929,2]
[408471493,1773695447711,-500.0,0.00013929,2]
[408471494,1773695447721,-500.0,0.00013929,2]
[408471495,1773695447731,-500.0,0.00013929,2]
[408471496,1773695447740,-500.0,0.00013929,2]
[408471497,1773695447750,-700.0,0.0001398,2]
[408471498,1773695447760,-167.89,0.00013983,2]
[408471499,1773695447770,-17444.50184577,0.00013995,2]
[408471500,1773695447779,-19199.95933027,0.00013996,2]
[408471501,1773695447788,-2000.0,0.00014041,2]
[408471502,1773695447798,-500.0,0.00014058,2]
[408471503,1773695447807,-150.0,0.00014058,2]
[408471504,1773695447816,-500.0,0.00014058,2]
[408471505,1773695447826,-500.0,0.00014058,2]
[408471506,1773695447835,-150.0,0.00014058,2]
[408471507,1773695447844,-500.0,0.00014058,2]
[408471508,1773695447855,-500.0,0.00014058,2]
[408471509,1773695447865,-500.0,0.00014058,2]
[408471510,1773695447874,-500.0,0.00014058,2]
[408471511,1773695447883,-500.0,0.00014058,2]
[408471512,1773695447893,-150.0,0.00014058,2]
[408471513,1773695447902,-500.0,0.00014058,2]
[408471514,1773695447911,-500.0,0.00014058,2]
[408471515,1773695447920,-500.0,0.00014058,2]
[408471516,1773695447930,-158.03117343,0.00014058,2]
[408471517,1773695447939,-500.0,0.00014058,2]
[408471518,1773695447950,-818.0,0.00014058,2]
[408471519,1773695447959,-500.0,0.00014058,2]
[408471520,1773695447968,-648.0,0.00014058,2]
[408471521,1773695447978,-829.0,0.00014058,2]
[408471522,1773695447987,-500.0,0.00014058,2]
[408471523,1773695447997,-500.0,0.00014058,2]
[408471524,1773695448006,-725.0,0.00014058,2]
[408471525,1773695448015,-150.0,0.00014058,2]
[408471526,1773695448025,-500.0,0.00014058,2]
[408471527,1773695448034,-196.17160349,0.00014058,2]
[408471528,1773695448043,-819.0,0.00014058,2]
[408471529,1773695448053,-605.0,0.00014058,2]
[408471530,1773695448062,-214.9995605,0.00014058,2]
[408471531,1773695448071,-500.0,0.00014058,2]
[408471532,1773695448080,-500.0,0.00014058,2]
[408471533,1773695448091,-150.0,0.00014058,2]
[408471534,1773695448100,-500.0,0.00014058,2]
[408471535,1773695448110,-150.0,0.00014058,2]
[408471536,1773695448119,-500.0,0.00014058,2]
[408471537,1773695448128,-510.0,0.00014058,2]
[408471538,1773695448137,-500.0,0.00014058,2]
[408471539,1773695448147,-150.0,0.00014058,2]
[408471540,1773695448156,-150.0,0.00014058,2]
[408471541,1773695448165,-165.64736011,0.00014058,2]
[408471542,1773695448175,-500.0,0.00014058,2]
[408471543,1773695448184,-500.0,0.00014058,2]
[408471544,1773695448193,-500.0,0.00014058,2]
[408471545,1773695448203,-150.0,0.00014058,2]
[408471546,1773695448212,-858.0,0.00014058,2]
[408471547,1773695448221,-184.34028915,0.00014058,2]
[408471548,1773695448231,-453.97,0.0001406,2]
[408471549,1773695448240,-444.51978947,0.0001407,2]
[408471550,1773695448249,-500.0,0.00014072,2]
[408471551,1773695448258,-444.51,0.00014072,2]
[408471552,1773695448268,-374.599679,0.00014099,7]
[408471553,1773695448278,-334.033933,0.00014099,7]
[408471554,1773695448291,-160.0,0.00014099,7]
[408471555,1773695448300,-161.699974,0.00014099,7]
[408471556,1773695448309,-163.399948,0.00014099,7]
[408471557,1773695448318,-453.97,0.00014108,2]
[408471558,1773695448328,-500.0,0.00014113,2]
[408471559,1773695448337,-150.0,0.00014113,2]
[408471560,1773695448347,-500.0,0.00014113,2]
[408471561,1773695448356,-500.0,0.00014113,2]
[408471562,1773695448366,-150.0,0.00014113,2]
[408471563,1773695448375,-500.0,0.00014113,2]
[408471564,1773695448385,-500.0,0.00014113,2]
[408471565,1773695448395,-500.0,0.00014113,2]
[408471566,1773695448405,-500.0,0.00014113,2]
[408471567,1773695448414,-500.0,0.00014113,2]
[408471568,1773695448423,-150.0,0.00014113,2]
[408471569,1773695448433,-500.0,0.00014113,2]
[408471570,1773695448442,-500.0,0.00014113,2]
[408471571,1773695448451,-500.0,0.00014113,2]
[408471572,1773695448460,-500.0,0.00014113,2]
[408471573,1773695448470,-818.0,0.00014113,2]
[408471574,1773695448479,-500.0,0.00014113,2]
[408471575,1773695448488,-648.0,0.00014113,2]
[408471576,1773695448498,-829.0,0.00014113,2]
[408471577,1773695448509,-500.0,0.00014113,2]
[408471578,1773695448518,-500.0,0.00014113,2]
[408471579,1773695448528,-725.0,0.00014113,2]
[408471580,1773695448537,-150.0,0.00014113,2]
[408471581,1773695448546,-500.0,0.00014113,2]
[408471582,1773695448556,-819.0,0.00014113,2]
[408471583,1773695448565,-605.0,0.00014113,2]
[408471584,1773695448574,-500.0,0.00014113,2]
[408471585,1773695448584,-500.0,0.00014113,2]
[408471586,1773695448594,-150.0,0.00014113,2]
[408471587,1773695448604,-500.0,0.00014113,2]
[408471588,1773695448614,-150.0,0.00014113,2]
[408471589,1773695448624,-500.0,0.00014113,2]
[408471590,1773695448633,-510.0,0.00014113,2]
[408471591,1773695448643,-500.0,0.00014113,2]
[408471592,1773695448652,-178.6098689,0.00014113,2]
[408471593,1773695448662,-500.0,0.00014113,2]
[408471594,1773695448671,-500.0,0.00014113,2]
[408471595,1773695448680,-500.0,0.00014113,2]
[408471596,1773695448690,-858.0,0.00014113,2]
[408471597,1773695448699,-415.566887,0.00014153,7]
[408471598,1773695448708,-160.0,0.00014153,7]
[408471599,1773695448717,-160.01335,0.00014153,7]
[408471600,1773695448726,-160.0267,0.00014153,7]
[408471601,1773695448737,-241.477371,0.00014153,7]
[408471602,1773695448747,-429.508629,0.00014153,7]
[408471603,1773695448758,-500.0,0.00014168,2]
[408471604,1773695448767,-164.13986565,0.00014168,2]
[408471605,1773695448776,-502.13521462,0.00014168,2]
[408471606,1773695448786,-446.62620251,0.00014168,2]
[408471607,1773695448795,-150.0,0.00014168,2]
[408471608,1773695448804,-500.0,0.00014168,2]
[408471609,1773695448814,-500.0,0.00014168,2]
[408471610,1773695448824,-500.0,0.00014168,2]
[408471611,1773695448838,-500.0,0.00014168,2]
[408471612,1773695448847,-500.0,0.00014168,2]
[408471613,1773695448858,-150.65340063,0.00014168,2]
[408471614,1773695448868,-500.0,0.00014168,2]
[408471615,1773695448877,-500.0,0.00014168,2]
[408471616,1773695448886,-241.37373546,0.00014168,2]
[408471617,1773695448896,-818.0,0.00014168,2]
[408471618,1773695448905,-500.0,0.00014168,2]
[408471619,1773695448914,-500.0,0.00014168,2]
[408471620,1773695448924,-648.0,0.00014168,2]
[408471621,1773695448933,-829.0,0.00014168,2]
[408471622,1773695448943,-216.94889736,0.00014168,2]
[408471623,1773695448952,-566.3688575,0.00014168,2]
[408471624,1773695448961,-725.0,0.00014168,2]
[408471625,1773695448971,-150.0,0.00014168,2]
[408471626,1773695448980,-500.0,0.00014168,2]
[408471627,1773695448989,-819.0,0.00014168,2]
[408471628,1773695448998,-605.0,0.00014168,2]
[408471629,1773695449007,-500.0,0.00014168,2]
[408471630,1773695449017,-500.0,0.00014168,2]
[408471631,1773695449026,-150.0,0.00014168,2]
[408471632,1773695449035,-500.0,0.00014168,2]
[408471633,1773695449044,-150.0,0.00014168,2]
[408471634,1773695449054,-500.0,0.00014168,2]
[408471635,1773695449063,-510.0,0.00014168,2]
[408471636,1773695449073,-500.0,0.00014168,2]
[408471637,1773695449082,-500.0,0.00014168,2]
[408471638,1773695449091,-500.0,0.00014168,2]
[408471639,1773695449102,-500.0,0.00014168,2]
[408471640,1773695449111,-858.0,0.00014168,2]
[408471641,1773695449121,-500.0,0.00014173,2]
[408471642,1773695449130,-500.0,0.00014173,2]
[408471643,1773695449139,-151.0,0.0001419,2]
[408471644,1773695449148,-426.46402275,0.0001421,2]
[408471645,1773695449158,-470.519781,0.0001421,7]
[408471646,1773695449167,-500.0,0.00014222,2]
[408471647,1773695449176,-150.0,0.00014222,2]
[408471648,1773695449185,-500.0,0.00014222,2]
[408471649,1773695449195,-500.0,0.00014222,2]
[408471650,1773695449204,-500.0,0.00014222,2]
[408471651,1773695449213,-500.0,0.00014222,2]
[408471652,1773695449223,-500.0,0.00014222,2]
[408471653,1773695449232,-500.0,0.00014222,2]
[408471654,1773695449241,-500.0,0.00014222,2]
[408471655,1773695449250,-818.0,0.00014222,2]
[408471656,1773695449260,-500.0,0.00014222,2]
[408471657,1773695449269,-500.0,0.00014222,2]
[408471658,1773695449278,-648.0,0.00014222,2]
[408471659,1773695449400,-829.0,0.00014222,2]
[408471660,1773695449410,-725.0,0.00014222,2]
[408471661,1773695449419,-150.0,0.00014222,2]
[408471662,1773695449428,-500.0,0.00014222,2]
[408471663,1773695449437,-819.0,0.00014222,2]
[408471664,1773695449445,-605.0,0.00014222,2]
[408471665,1773695449455,-195.16132004,0.00014222,2]
[408471666,1773695449464,-500.0,0.00014222,2]
[408471667,1773695449473,-150.0,0.00014222,2]
[408471668,1773695449482,-500.0,0.00014222,2]
[408471669,1773695449491,-224.16028169,0.00014222,2]
[408471670,1773695449500,-500.0,0.00014222,2]
[408471671,1773695449511,-510.0,0.00014222,2]
[408471672,1773695449525,-176.15270069,0.00014222,2]
[408471673,1773695449535,-500.0,0.00014222,2]
[408471674,1773695449545,-500.0,0.00014222,2]
[408471675,1773695449554,-500.0,0.00014222,2]
[408471676,1773695449564,-858.0,0.00014222,2]
[408471677,1773695449574,-303.0,0.00014274,2]
[408471678,1773695449583,-151.0,0.00014277,2]
[408471679,1773695449591,-151.0,0.00014277,2]
[408471680,1773695449600,-500.0,0.00014277,2]
[408471681,1773695449610,-150.0,0.00014277,2]
[408471682,1773695449619,-614.43636415,0.00014277,2]
[408471683,1773695449628,-500.0,0.00014277,2]
[408471684,1773695449638,-500.0,0.00014277,2]
[408471685,1773695449647,-500.0,0.00014277,2]
[408471686,1773695449656,-500.0,0.00014277,2]
[408471687,1773695449666,-500.0,0.00014277,2]
[408471688,1773695449675,-500.0,0.00014277,2]
[408471689,1773695449684,-818.0,0.00014277,2]
[408471690,1773695449694,-500.0,0.00014277,2]
[408471691,1773695449703,-500.0,0.00014277,2]
[408471692,1773695449712,-648.0,0.00014277,2]
[408471693,1773695449721,-829.0,0.00014277,2]
[408471694,1773695449731,-725.0,0.00014277,2]
[408471695,1773695449740,-156.41344722,0.00014277,2]
[408471696,1773695449749,-500.0,0.00014277,2]
[408471697,1773695449758,-819.0,0.00014277,2]
[408471698,1773695449768,-605.0,0.00014277,2]
[408471699,1773695449777,-500.0,0.00014277,2]
[408471700,1773695449787,-150.0,0.00014277,2]
[408471701,1773695449804,-500.0,0.00014277,2]
[408471702,1773695449814,-500.0,0.00014277,2]
[408471703,1773695449823,-510.0,0.00014277,2]
[408471704,1773695449835,-500.0,0.00014277,2]
[408471705,1773695449844,-500.0,0.00014277,2]
[408471706,1773695449854,-500.0,0.00014277,2]
[408471707,1773695449863,-858.0,0.00014277,2]
[408471708,1773695449872,-411.54,0.00014311,2]
[408471709,1773695449883,-150.0,0.00014324,7]
[408471710,1773695449893,-150.0,0.00014324,7]
[408471711,1773695449903,-150.0,0.00014324,7]
[408471712,1773695449912,-267.0,0.00014324,7]
[408471713,1773695449925,-473.01558362,0.00014331,2]
[408471714,1773695449934,-500.0,0.00014332,2]
[408471715,1773695449943,-181.18051246,0.00014332,2]
[408471716,1773695449952,-500.0,0.00014332,2]
[408471717,1773695449961,-500.0,0.00014332,2]
[408471718,1773695449970,-500.0,0.00014332,2]
[408471719,1773695449979,-500.0,0.00014332,2]
[408471720,1773695449988,-500.0,0.00014332,2]
[408471721,1773695449997,-500.0,0.00014332,2]
[408471722,1773695450007,-818.0,0.00014332,2]
[408471723,1773695450016,-500.0,0.00014332,2]
[408471724,1773695450025,-648.0,0.00014332,2]
[408471725,1773695450035,-829.0,0.00014332,2]
[408471726,1773695450044,-725.0,0.00014332,2]
[408471727,1773695450054,-500.0,0.00014332,2]
[408471728,1773695450063,-819.0,0.00014332,2]
[408471729,1773695450073,-605.0,0.00014332,2]
[408471730,1773695450082,-216.08610835,0.00014332,2]
[408471731,1773695450091,-156.80248786,0.00014332,2]
[408471732,1773695450101,-500.0,0.00014332,2]
[408471733,1773695450110,-500.0,0.00014332,2]
[408471734,1773695450120,-510.0,0.00014332,2]
[408471735,1773695450129,-500.0,0.00014332,2]
[408471736,1773695450139,-500.0,0.00014332,2]
[408471737,1773695450148,-500.0,0.00014332,2]
[408471738,1773695450157,-858.0,0.00014332,2]
[408471739,1773695450168,-608.00046403,0.00014346,2]
[408471740,1773695450185,-200.0,0.00014346,2]
[408471741,1773695450206,-2185.78,0.00014384,2]
[408471742,1773695450222,-500.0,0.00014387,2]
[408471743,1773695450236,-500.0,0.00014387,2]
[408471744,1773695450246,-500.0,0.00014387,2]
[408471745,1773695450258,-500.0,0.00014387,2]
[408471746,1773695450268,-500.0,0.00014387,2]
[408471747,1773695450278,-500.0,0.00014387,2]
[408471748,1773695450291,-500.0,0.00014387,2]
[408471749,1773695450301,-818.0,0.00014387,2]
[408471750,1773695450311,-500.0,0.00014387,2]
[408471751,1773695450322,-648.0,0.00014387,2]
[408471752,1773695450336,-829.0,0.00014387,2]
[408471753,1773695450345,-725.0,0.00014387,2]
[408471754,1773695450356,-500.0,0.00014387,2]
[408471755,1773695450365,-819.0,0.00014387,2]
[408471756,1773695450375,-605.0,0.00014387,2]
[408471757,1773695450384,-500.0,0.00014387,2]
[408471758,1773695450394,-500.0,0.00014387,2]
[408471759,1773695450403,-510.0,0.00014387,2]
[408471760,1773695450412,-500.0,0.00014387,2]
[408471761,1773695450422,-500.0,0.00014387,2]